Cogmind - Beta 15 @@@ ROGUE MODE // 2025.05.06 @ 19:56:05 Player: Anting Result: Destroyed by N9-A90(R) with Subdweller Machine Gun Performance ------------- Evolutions (0) 0 Regions Visited (2) 400 Robots Destroyed (15) 75 Value Destroyed (414) 414 Prototype IDs (2) 40 Alien Tech Used (0) 0 Bonus (0) 0 TOTAL SCORE: 929 Bonus ------- None Cogmind --------- Core Integrity 0/250 Matter 153/300 Energy 100/100 System Corruption 1% Temperature Cool (0) Movement Walking (400) Ox4 Location -10/Subcaves Parts ------- > --- POWER (1) -------- (None) > --- PROPULSION (2) --- Aluminum Leg > --- UTILITY (2) ------ Improved Heat Sink High-capacity Storage Unit > --- WEAPON (2) ------- Grenade Launcher > --- INVENTORY (20) --- Subdweller Power Source Light Treads Light Treads Compact Wheel Subdweller Monowheel Disposable Heat Sink Small Storage Unit Light Armor Plating Small Laser Subdweller Beam Cannon Peak State ------------ > --- POWER ------------ (None) > --- PROPULSION ------- Aluminum Leg Aluminum Leg > --- UTILITY ---------- Improved Heat Sink High-capacity Storage Unit > --- WEAPON ----------- Subdweller Machine Gun Grenade Launcher > --- INVENTORY -------- Light Treads Light Treads Compact Wheel Disposable Heat Sink Small Storage Unit Light Armor Plating Small Laser Subdweller Beam Cannon Grenade Launcher [Rating: 10] Favorites ----------- Power Light Ion Engine Engine Light Ion Engine Propulsion Aluminum Leg Leg Aluminum Leg Utility Small Storage Unit Device Improved Heat Sink Storage Small Storage Unit Weapon Assault Rifle Ballistic Gun Assault Rifle Launcher Grenade Launcher Build | -11 -10 -10 ------- Run | Yrd Mat Sub Slots Evolved . | . . . Power . | . . . Propulsion . | . . . Utility . | . . . Weapon . | . . . Parts Attached 12 | 6 1 5 Power 2 | 1 . 1 Engine 2 | 1 . 1 Core . | . . . Reactor . | . . . Propulsion 2 | 2 . . Treads . | . . . Leg 2 | 2 . . Wheel . | . . . Hover . | . . . Flight . | . . . Utility 3 | 1 1 1 Device 1 | . 1 . Storage 2 | 1 . 1 Processor . | . . . Hackware . | . . . Protection . | . . . Artifact . | . . . Weapon 5 | 2 . 3 Energy Gun . | . . . Energy Cannon . | . . . Ballistic Gun 3 | 2 . 1 Ballistic Cannon . | . . . Launcher 2 | . . 2 Special Weapon . | . . . Impact Weapon . | . . . Slashing Weapon . | . . . Piercing Weapon . | . . . Special Melee Weapon . | . . . Unidentified Prototypes . | . . . Parts Lost 7 | . . 7 Power 2 | . . 2 Propulsion 1 | . . 1 Utility . | . . . Weapon 4 | . . 4 Highest Loss Streak 4 | . . 4 To Critical Strikes . | . . . Average Backups 7 | 2 7 7 Power . | . 1 . Propulsion 2 | 1 2 3 Utility 1 | . . 1 Weapon 2 | . 2 2 Tool/Special . | . . . Unused Backups 9 | . . 9 Power 1 | . . 1 Propulsion 4 | . . 4 Utility 2 | . . 2 Weapon 2 | . . 2 Tool/Special . | . . . Average Slot Usage (%) 85 | . 91 80 Engine 7 | . 14 1 Leg 28 | . 28 28 Device 10 | . 6 14 Storage 14 | . 14 14 Ballistic Gun 18 | . 28 9 Launcher 6 | . . 12 Peak Build Rating 10 | 6 9 10 Average Rating 7 | 4 7 8 On Entrance 5 | . 6 9 Naked Turns . | . . . Heaviest Build 48 | 12 13 48 Greatest Support 20 | 20 20 20 Greatest Overweight (x) 2 | . . 2 Average Overweight (x) . | . . . Largest Inventory Capacity 20 | 8 8 20 Average Capacity 10 | 7 8 13 Most Carried 11 | 4 8 11 Average Carried 7 | 2 7 7 Final Capacity 20 | 8 8 20 Final Carried 10 | 4 8 10 Class Distribution -------------------- 100% | Mutant Dominant Class ---------------- Mutant | -10/Materials Mutant | -10/Subcaves Resources | -11 -10 -10 ----------- Run | Yrd Mat Sub Matter Collected 516 | 217 158 141 Remotely . | . . . Salvage Created 406 | . 306 100 Parts 32 | . 25 7 Haulers Intercepted . | . . . Recyclers Shooed . | . . . Parts Field Recycled . | . . . Retrieved Matter . | . . . Parts Self-Destructed . | . . . Prevented . | . . . Kills | -11 -10 -10 ------- Run | Yrd Mat Sub Combat Hostiles Destroyed 12 | . 6 6 Guns 6 | . 6 . AOE 6 | . . 6 Classes Destroyed 7 | . 5 2 Tunneler 1 | . 1 . Recycler 1 | . 1 . Watcher 1 | . 1 . Swarmer 3 | . 3 . Grunt 3 | . 3 . Artisan 1 | . . 1 Subdweller 6 | . . 6 Best Kill Streak 8 | . 8 2 Combat Bots Only 3 | . 3 2 Max Kills in Single Turn 1 | . 1 1 Gunslinging . | . . . Exploded 1 | . . 1 Melee . | . . . Uniques/NPCs Destroyed . | . . . Combat | -11 -10 -10 -------- Run | Yrd Mat Sub Hostile Shots Fired 59 | . 35 24 Missed 17 | . 9 8 Hits 42 | . 26 16 Projectile 42 | . 26 16 AOE 4 | . . 4 Damage Taken 905 | . 313 592 Core 251 | . 71 180 Absorbed by Shields . | . . . Core Remaining (%) 100 | 100 . . Volleys Fired 53 | . 24 29 Largest 2 | . 2 2 Hottest 40 | . 40 40 Shots Fired 79 | . 48 31 Gun 58 | . 48 10 Cannon . | . . . Launcher 21 | . . 21 Special . | . . . Kinetic 58 | . 48 10 Thermal . | . . . Explosive 21 | . . 21 Electromagnetic . | . . . Robot Hit Streak 8 | . 8 7 Robot Miss Streak 4 | . 4 2 Penetration Max . | . . . Secondary Targets 1 | . 1 . Max Gunslinging Chain 1 | . 1 . Shots Hit Robots 40 | . 31 9 Core Hits 27 | . 13 14 Critical Kills . | . . . Critical Parts Destroyed . | . . . Critical Strikes . | . . . Melee Attacks . | . . . Impact . | . . . Slashing . | . . . Piercing . | . . . Sneak Attacks . | . . . Combat Hostiles . | . . . Follow-up Attacks . | . . . Damage Inflicted 1310 | . 378 932 Guns 405 | . 378 27 Cannons . | . . . Explosions 905 | . . 905 Melee . | . . . Ramming . | . . . Kinetic 405 | . 378 27 Thermal . | . . . Explosive 905 | . . 905 Electromagnetic . | . . . Impact . | . . . Slashing . | . . . Piercing . | . . . Highest Corruption 1 | . 1 1 Average Corruption 1 | . 1 1 Corruption Purged . | . . . Corruption Blocked . | . . . Effects 3 | . . 3 Energy Discharges 1 | . . 1 Data Loss (minor) 1 | . . 1 Data Loss (major) 1 | . . 1 Overload Shots . | . . . Overflow Damage . | . . . Projectiles . | . . . Explosions . | . . . Melee . | . . . Knockbacks . | . . . Impact . | . . . Kinetic . | . . . Secondary . | . . . Self-Inflicted Damage 7 | . . 7 Shots 1 | . . 1 Rammed . | . . . Targets Rammed . | . . . Kicked . | . . . Crushed . | . . . Highest Temperature 10 | . 10 . Average Temperature 4 | . 4 . Received Heat Transfer 201 | . 147 54 Siege Activations . | . . . Martial Activations . | . . . Shielding Activations . | . . . Robots Disrupted . | . . . Combat Hostiles . | . . . Robots Corrupted . | . . . Combat Hostiles . | . . . Parts Fried . | . . . Impact Corruptions . | . . . Robots Melted . | . . . Combat Hostiles . | . . . Parts Melted . | . . . Heat Transferred . | . . . Parts Sabotaged . | . . . Parts Stolen . | . . . Parts Stripped . | . . . Power Chain Reactions . | . . . Alert | -11 -10 -10 ------- Run | Yrd Mat Sub Maximum Alert Level . | . . . Low Security (%) 100 | 100 100 . Level 1 . | . . . Level 2 . | . . . Level 3 . | . . . Level 4 . | . . . Level 5 . | . . . High Security . | . . . Max Security . | . . . Peak Influence 115 | . 115 . Initial . | . . . Average 33 | . 39 . Influence Increases 180 | . 180 . Destroy 0b10 Robot/C 120 | . 120 . Destroy 0b10 Robot/NC 15 | . 15 . Destroy Leader 22 | . 22 . Successful Hack 8 | . 8 . Lose Combat Pursuer 15 | . 15 . Influence Decreases 180 | . 108 72 Entered New Map 36 | . . 36 Time Decay 114 | . 108 6 Lost Part 30 | . . 30 Squads Dispatched . | . . . Investigation . | . . . Extermination . | . . . Reinforcement . | . . . Assault . | . . . Garrison . | . . . Intercept . | . . . Searches Triggered . | . . . Construction Impeded . | . . . Haulers Reinforced . | . . . Active Scanning Responses . | . . . Cargo Convoy Interrupts . | . . . Stealth | -11 -10 -10 --------- Run | Yrd Mat Sub Distress Signals . | . . . Communications Jammed . | . . . Distress Signals . | . . . Times Spotted 15 | . 7 8 Peak Tracking Total 3 | . 3 2 Tactical Retreats 1 | . 1 . Traps | -11 -10 -10 ------- Run | Yrd Mat Sub Traps Triggered 2 | . 1 1 Indirectly . | . . . Trap Hack Attempts . | . . . Triggered . | . . . Disarmed . | . . . Reprogrammed . | . . . Reused . | . . . Traps Extracted . | . . . Installed . | . . . Triggered . | . . . Machines | -11 -10 -10 ---------- Run | Yrd Mat Sub Machines Disabled . | . . . Max in Single Turn . | . . . Machines Repaired . | . . . Machines Dismantled . | . . . Machines Sabotaged . | . . . Overloaded Fab Kills . | . . . Hacking | -11 -10 -10 --------- Run | Yrd Mat Sub Machines Accessed 1 | . 1 . Terminals 1 | . 1 . Fabricators . | . . . Repair Stations . | . . . Recycling Units . | . . . Scanalyzers . | . . . Garrison Access . | . . . Total Hacks 3 | . 3 . Successful 2 | . 2 . Failed 1 | . 1 . Catastrophic . | . . . Database Lockouts . | . . . Manual 1 | . 1 . Terminals 3 | . 3 . Fabricators . | . . . Repair Stations . | . . . Recycling Units . | . . . Scanalyzers . | . . . Garrison Access . | . . . Terminal Hacks 2 | . 2 . Prototype ID Bank 1 | . 1 . Branch Access Points 1 | . 1 . Fabricator Hacks . | . . . Repair Station Hacks . | . . . Recycling Unit Hacks . | . . . Scanalyzer . | . . . Garrison Access Hacks . | . . . Unauthorized Hacks . | . . . Terminals . | . . . Fabricators . | . . . Repair Stations . | . . . Recycling Units . | . . . Scanalyzers . | . . . Garrison Access . | . . . Data Cores Recovered . | . . . Used . | . . . Hacking Detections 1 | . 1 . Full Trace Events . | . . . Feedback Events . | . . . Feedback Blocked . | . . . Robot Schematics Acquired . | . . . Robots Built . | . . . Authchips . | . . . Time . | . . . Total Robot Build Rating . | . . . Part Schematics Acquired . | . . . Parts Built . | . . . Authchips . | . . . Time . | . . . Total Part Build Rating . | . . . Parts Repaired . | . . . Time . | . . . Parts Recycled . | . . . Recycled Matter . | . . . Retrieved Matter . | . . . Retrieved Components . | . . . Parts Scanalyzed . | . . . Part Schematics Acquired . | . . . Parts Damaged . | . . . Bothacking | -11 -10 -10 ------------ Run | Yrd Mat Sub Used RIF Installer . | . . . Robots Hacked . | . . . Non-combat . | . . . Combat . | . . . Robot Hacks Applied . | . . . Relay Couplers Released . | . . . Fabnet Peak Effective % . | . . . Robots Rewired . | . . . Allies Hacked . | . . . Hacks Repelled . | . . . Allies | -11 -10 -10 -------- Run | Yrd Mat Sub Total Allies . | . . . Largest Group . | . . . Highest-Rated Group . | . . . Highest-Rated Ally . | . . . Total Orders . | . . . Ally Attacks . | . . . Total Damage . | . . . Kills . | . . . Allies Corrupted . | . . . Allies Melted . | . . . Intel | -11 -10 -10 ------- Run | Yrd Mat Sub Active Infowar (turns) . | . . . Robot Analysis Total . | . . . Derelict Logs Recovered . | . . . Drone Launches . | . . . Drone Recoveries . | . . . Exploration | -11 -10 -10 ------------- Run | Yrd Mat Sub Turns Passed 734 | 60 314 360 Spaces Moved 402 | 45 176 181 Core 9 | 9 . . Treads . | . . . Legs 393 | 36 176 181 Wheels . | . . . Hover . | . . . Flight . | . . . Fastest Speed 50 | 50 120 120 Average Speed 135 | 106 120 157 Slowest Speed 260 | 120 120 260 Overloaded Moves . | . . . Propulsion Burnouts . | . . . Robots Hopped . | . . . Potential Cave-ins . | . . . Cave-ins Triggered . | . . . Exploration Rate (%) 24 | 3 41 29 Regions Visited 2 Branch Regions 1 Pre-discovered Areas . | . . . Known Exits Taken . | . . . Unknown Exits Taken 2 | 1 1 . Scrap Searched . | . . . Spaces Dug . | . . . Terrain Destroyed 65 | . . 65 Melee . | . . . Projectile . | . . . AOE 65 | . . 65 Terrain Rammed . | . . . Walls Destroyed . | . . . Machines Disabled . | . . . Actions | -11 -10 -10 --------- Run | Yrd Mat Sub Total 505 | 54 230 221 Wait 26 | . 26 . Move 400 | 44 175 181 Hop . | . . . Pick Up 14 | 4 4 6 Fast Attach 7 | 6 1 . Attach 4 | . . 4 Detach . | . . . Swap 1 | . . 1 Drop . | . . . Fire 53 | . 24 29 Melee . | . . . Ram . | . . . Kick . | . . . Crush . | . . . Escape Stasis . | . . . Rewire . | . . . Trap . | . . . Miscellaneous . | . . . Route ------- -11/Scrapyard -10/Materials (discovered 2 exits: *Min / [*Sub]) -10/Subcaves (discovered 1 exit: [*Mat]) History --------- Turn | Location | Event 7 | -11/Scrapyard | Discovered new exit (range 15) 61 | -11/Scrapyard | Entered Materials 117 | -10/Materials | Identified exit to Mines 312 | -10/Materials | Build established: Mutant 366 | -10/Materials | Discovered new exit (range 4) 375 | -10/Materials | Entered Subcaves 398 | -10/Subcaves | Core integrity fell below 50% 426 | -10/Subcaves | Lost 4 parts (2p2w) 565 | -10/Subcaves | Ambushed by Subdwellers from Twisted Machinery 648 | -10/Subcaves | Core integrity fell below 20% 710 | -10/Subcaves | Discovered new exit (range 15) 735 | -10/Subcaves | Destroyed by N9-A90(R) with Subdweller Machine Gun Last Messages --------------- 00633_ Subatomizers dissect the Sub. Monowheel. 00633_ Acquired Sub. Monowheel. 00645_ The unstable cave ceiling collapses. 00646_ Subatomizers dissect the Disposable Heat Sink. 00648_ Destroyed Scrap Shield. 00649_ Sub. Machine Gun destroyed. 00649_ Grenade Launcher destroyed. 00651_ U2-MXF(R) destroyed. 00660_ The unstable cave ceiling collapses. 00661_ Subatomizers dissect the Disposable Heat Sink. 00666_ System corrupted: Component data lost. 00669_ Acquired 30 matter. 00670_ The unstable cave ceiling collapses. 00673_ Subatomizers dissect the Disposable Heat Sink. 00676_ The unstable cave ceiling collapses. 00683_ Subatomizers dissect the Disposable Heat Sink. 00694_ The unstable cave ceiling collapses. 00696_ Subatomizers dissect the Disposable Heat Sink. 00710_ EXIT=FOUND 00734_ Aluminum Leg destroyed. Map ----- +----------------------------------------------------+ | ????????????????# "" ## ### " #### ## | | ????????????????# #" ## " ### | | ????????????????# ## # ##### ### | | ???????????????##"""" ##"# # | | ???????????????# """ # | | ???????????????### # """"" | | ?????????????????### ### ""#### & # | | ???????????????????### ##?## " ##?# ## | | ?????????????????????####???### ##??# # # # | | ??????????????????????????????### ##???# & ### | | ????????????????????????????????# #?##### "" "" | | ????????????????????????????????# #?? ## """" | | ????????????????????????????????####?? ##" | | ?????????????????????????????????????## ##?" | | ?????????????????????????????????????# #??? | | ??????????????????????????????????##?# # # ???" | | ??????????????????????????????????# ## & ####? | | ??????????????????????????????????# ## #? | | ?????????????????????????????<